bitfinex/quotes_ETHUSD_20251215
["timestamp","ask_amount","ask_price","bid_price","bid_amount"]
[1765762392619,1e-08,3082.4,3082.3,2.28869383]
[1765762392992,1e-08,3082.4,3082.3,2.80269383]
[1765762394329,1e-08,3082.4,3082.3,6.07946766]
[1765762395799,1e-08,3082.4,3082.3,22.44847466]
[1765762396001,0.003,3082.6,3082.3,9.72233539]
[1765762396198,0.003,3082.6,3082.5,4.70679932]
[1765762396730,0.003,3082.6,3082.5,5.20179932]
[1765762397314,0.003,3082.6,3082.5,5.71579932]
[1765762398128,0.003,3082.6,3082.5,5.74824052]
[1765762398341,0.003,3082.6,3082.5,6.17922102]
[1765762398548,0.003,3082.6,3082.5,6.98339918]
[1765762398710,0.003,3082.6,3082.5,6.43695798]
[1765762398911,0.003,3082.6,3082.5,6.51997748]
[1765762399669,0.001,3083.4,3082.5,6.51997748]
[1765762399670,0.001,3083.4,3082.6,0.405504]
[1765762399819,0.001,3083.4,3083.3,6.99026668]
[1765762400007,0.001,3083.4,3083.3,8.78376864]
[1765762400316,0.001,3083.4,3083.3,9.27876864]
[1765762400512,0.001,3083.4,3083.3,12.52204694]
[1765762401251,0.001,3083.4,3083.3,28.33367694]
[1765762401557,0.4628,3084.6,3084.0,0.98597929]
[1765762401921,0.0863,3084.1,3084.0,0.98597929]
[1765762402340,0.4628,3084.6,3084.0,0.98597929]
[1765762402571,0.4628,3084.6,3084.2,0.58047529]
[1765762403028,0.4628,3084.6,3083.9,0.58047529]
[1765762403029,0.0863,3084.3,3083.9,0.58047529]
[1765762403233,3.70473314,3084.6,3083.9,0.58047529]
[1765762403234,0.0855,3084.0,3083.9,3.82312258]
[1765762403641,0.0855,3084.0,3083.4,0.405504]
[1765762403848,0.0046,3083.7,3083.4,0.405504]
[1765762404149,5.91906268,3085.7,3083.3,0.515]
[1765762404150,0.6,3085.5,3084.6,0.405504]
[1765762404457,1.0628,3085.5,3085.0,0.58047529]
[1765762404836,0.6,3085.5,3085.1,1.109504]
[1765762405039,0.6,3085.5,3085.1,0.920504]
[1765762405962,0.6,3085.5,3085.1,1.415504]
[1765762406167,0.6,3085.5,3085.3,0.405504]
[1765762406670,0.6,3085.5,3085.4,1.43877929]
[1765762408967,0.6,3085.5,3085.4,4.67985013]
[1765762409155,0.6,3085.5,3085.4,5.15165013]
[1765762409360,0.003,3086.4,3085.4,11.63379181]
[1765762409692,0.001,3086.6,3086.5,0.98597929]
[1765762409838,0.1977,3087.9,3086.6,0.405504]
[1765762410046,0.1977,3087.9,3087.2,0.98597929]
[1765762410240,0.4683,3087.8,3087.2,1.50097929]
[1765762410567,0.1977,3087.9,3087.2,1.50097929]
[1765762410743,0.4683,3087.8,3087.2,1.50097929]
[1765762410944,0.4683,3087.8,3087.4,0.405504]
[1765762411268,0.4683,3087.8,3087.2,7.46431012]
[1765762411469,0.4683,3087.8,3087.2,8.2840441]
[1765762411639,0.1977,3087.9,3087.2,11.52322523]
[1765762411980,0.1977,3088.7,3087.9,0.405504]
[1765762412188,0.1977,3088.7,3088.0,0.515]
[1765762412472,0.666,3088.7,3088.0,0.515]
[1765762412651,0.4101,3088.1,3087.8,0.58047529]
[1765762412977,0.6064,3087.9,3086.7,5.91906268]
[1765762413141,0.6064,3087.9,3085.2,3.89995362]
[1765762413142,0.0055,3087.8,3086.5,5.91906268]
[1765762413344,0.33894468,3087.7,3086.6,3.7548102]
[1765762413555,0.33894468,3087.7,3087.0,0.405504]
[1765762413750,0.33894468,3087.7,3087.2,5.91906268]
[1765762414064,0.4683,3087.6,3087.1,5.8897574]
[1765762414379,0.4609,3087.2,3087.0,3.23938639]
[1765762414581,0.4683,3087.6,3087.1,0.405504]
[1765762415183,0.4683,3087.6,3087.2,0.405504]
[1765762415477,0.4683,3087.6,3087.1,0.405504]
[1765762415853,0.4683,3087.6,3087.1,3.64474931]
[1765762416050,0.1465,3087.9,3087.1,3.64474931]
[1765762416376,0.4609,3087.2,3087.1,0.405504]
[1765762416578,0.4683,3087.8,3087.1,4.22526535]
[1765762416886,0.4683,3087.8,3087.1,7.46455141]
[1765762417251,0.4683,3087.8,3087.1,7.65045141]
[1765762418085,0.4683,3087.8,3086.7,5.8897574]
[1765762418288,0.0055,3087.1,3086.8,1.50097929]
[1765762418580,6.94540903,3087.8,3086.0,6.0756574]
[1765762418581,0.6541,3086.8,3086.0,6.0756574]
[1765762418783,0.6541,3086.8,3086.3,6.48022932]
[1765762418983,0.4683,3087.1,3086.4,0.98597929]
[1765762419153,0.1977,3086.9,3086.2,3.24022824]
[1765762419352,0.1977,3086.9,3086.4,0.58047529]
[1765762419677,0.4683,3086.8,3086.4,3.2400072]
[1765762420088,0.4683,3086.8,3086.4,3.82049602]
[1765762420089,0.4602,3086.5,3086.4,3.82049602]
[1765762420298,0.4683,3086.8,3086.5,0.58047529]
[1765762420464,0.4683,3086.8,3086.4,3.82048938]
[1765762420784,0.4683,3087.3,3086.5,0.405504]
[1765762420988,0.4683,3087.3,3086.7,0.405504]
[1765762421359,0.4683,3087.3,3086.8,3.23960088]
[1765762421559,0.4683,3087.3,3086.9,0.98597929]
[1765762421862,0.4683,3087.3,3086.8,0.58047529]
[1765762422380,0.6579,3086.9,3086.5,0.405504]
[1765762422585,0.0046,3086.8,3086.6,0.58047529]
[1765762422890,3.70739852,3087.3,3086.8,0.58047529]
[1765762422891,0.4683,3087.3,3086.8,0.58047529]
[1765762423094,0.4693,3087.3,3086.8,0.58047529]
[1765762423490,0.4693,3087.3,3086.8,3.82001608]
[1765762423876,0.4693,3087.3,3086.7,0.58047529]
[1765762424079,0.4693,3087.3,3086.8,3.23958666]
[1765762424392,0.37181873,3087.3,3086.8,3.23958666]
[1765762424596,0.001,3087.3,3086.8,3.23958666]
[1765762424799,0.4683,3087.2,3086.8,3.23958666]
[1765762425493,0.4683,3087.2,3086.7,3.82015854]
[1765762426668,0.4602,3086.8,3086.6,1.09647529]
[1765762426865,0.4602,3086.8,3086.7,0.58047529]
[1765762427095,0.9282,3086.7,3085.6,0.4718]
[1765762427273,0.0047,3086.5,3085.7,3.75666592]
[1765762427595,0.0047,3086.5,3085.8,0.4718]
[1765762428168,0.0047,3086.5,3085.8,1.05227529]
[1765762428372,0.4554,3085.9,3085.4,3.24098462]
[1765762428603,0.4554,3085.9,3085.5,0.516]
[1765762428802,0.4554,3085.9,3085.6,0.405504]
[1765762428989,0.4683,3086.2,3085.7,3.24075148]
[1765762429171,0.4683,3086.6,3085.8,0.58047529]
[1765762429507,0.1977,3086.9,3086.1,6.48067138]
[1765762429680,0.666,3086.9,3086.1,6.66657138]
[1765762430080,0.666,3086.9,3086.2,1.01838159]
[1765762430283,0.1977,3086.9,3086.2,1.01838159]
[1765762430589,0.001,3087.3,3086.4,0.405504]
[1765762431092,0.001,3087.3,3086.4,1.10708213]
[1765762431403,0.001,3087.3,3087.2,0.6762]
[1765762431616,0.001,3087.3,3087.2,5.01185642]
[1765762432223,0.001,3087.3,3087.2,5.88916042]
[1765762432583,0.001,3087.3,3087.2,4.90136042]
[1765762432903,0.001,3087.3,3087.2,4.22516042]
[1765762433112,0.4093,3087.3,3087.2,0.58047529]
[1765762433468,0.001,3087.3,3087.2,3.81965642]
[1765762433675,0.001,3087.3,3087.2,4.22516042]
[1765762433874,0.001,3087.3,3087.2,5.18726042]
[1765762435483,0.001,3087.3,3087.2,5.70326042]
[1765762435874,0.001,3087.3,3087.2,5.18726042]
[1765762436080,0.001,3087.3,3087.2,5.23146042]
[1765762436503,0.001,3087.3,3087.2,5.70326042]
[1765762437004,0.001,3087.3,3087.2,6.59752501]
[1765762437193,0.001,3087.3,3087.2,5.23146042]
[1765762437501,0.001,3087.3,3087.2,4.71546042]
[1765762437708,0.001,3087.3,3087.2,5.23146042]
[1765762437909,0.001,3087.3,3087.2,5.19806042]
[1765762438114,0.001,3087.3,3087.2,5.66896042]
[1765762438418,0.4509,3088.3,3087.3,0.98597929]
[1765762438619,0.4509,3088.3,3087.3,1.45687929]
[1765762439317,0.4509,3088.3,3087.3,0.98597929]
[1765762439800,0.4509,3088.3,3087.4,6.4779426]
[1765762439988,0.4509,3088.3,3087.5,0.405504]
[1765762440880,0.4009,3088.3,3087.5,0.405504]
[1765762441080,0.3815,3087.6,3087.5,0.98597929]
[1765762441288,0.3815,3087.6,3087.5,1.50197929]
[1765762441629,0.4009,3088.3,3087.5,1.50197929]
[1765762441630,0.001,3088.3,3087.7,0.405504]
[1765762441915,0.001,3088.3,3087.8,0.516]
[1765762442111,0.4934,3087.8,3087.6,3.23876149]
[1765762442312,0.2899,3087.7,3087.6,0.58047529]
[1765762443086,0.2899,3087.7,3087.5,3.23886589]
[1765762443087,0.7813,3087.7,3087.5,3.23886589]
[1765762443431,0.4914,3087.7,3086.8,3.23951038]
[1765762443722,0.4894,3087.6,3087.0,0.58047529]
[1765762443889,0.37280889,3087.5,3087.0,0.58047529]
[1765762444082,0.4999,3087.4,3087.0,0.58047529]
[1765762444286,0.4999,3087.4,3087.1,0.405504]
[1765762445417,0.2835,3087.2,3086.8,6.47918027]
[1765762445616,0.2835,3087.2,3086.5,3.2418497]
[1765762445617,0.2835,3087.2,3087.1,3.64479006]
[1765762445792,0.2835,3087.2,3087.1,0.405504]
[1765762445991,0.4999,3087.4,3087.1,0.405504]
[1765762446192,0.4999,3087.7,3087.1,0.405504]
[1765762446525,0.39316712,3087.6,3087.1,0.405504]
[1765762446706,0.4999,3087.7,3087.1,0.405504]
[1765762446912,0.2835,3087.2,3087.1,0.405504]
[1765762447252,0.4999,3087.7,3087.2,0.405504]
[1765762447520,0.1932,3087.8,3087.2,0.405504]
[1765762447721,0.4934,3087.3,3086.8,0.58047529]
[1765762447886,0.013002,3087.6,3086.5,0.002]
[1765762448090,0.67836832,3087.6,3086.7,0.98597929]
[1765762448305,0.67836832,3087.6,3086.6,3.75581079]
[1765762448306,0.67836832,3087.6,3086.6,0.516]
[1765762448494,0.6866,3086.7,3086.6,0.516]
[1765762448694,0.6866,3086.7,3086.5,3.82238783]
[1765762448900,0.5028,3086.6,3086.5,0.58247529]
[1765762449098,0.5028,3086.6,3086.5,3.82239105]
[1765762449417,0.0029,3086.6,3086.5,0.002]
[1765762449788,0.1932,3086.9,3086.5,0.002]
[1765762450199,0.4934,3086.6,3086.5,0.002]
[1765762450718,0.7877,3086.6,3086.5,0.002]
[1765762450922,0.001,3088.3,3087.7,0.4569]
[1765762451110,0.1932,3089.9,3088.4,0.405504]
[1765762451311,0.4999,3089.8,3088.6,0.98597929]
[1765762451514,0.4999,3089.8,3088.8,0.98597929]
[1765762451715,0.4499,3089.8,3089.2,0.98597929]
[1765762451924,0.1932,3090.3,3089.4,0.405504]
[1765762452125,0.1932,3090.5,3089.8,0.405504]
[1765762452325,0.1932,3090.5,3090.0,0.405504]
[1765762452626,0.519,3091.8,3090.3,0.592904]
[1765762452827,0.1932,3092.0,3090.3,2.33618973]
[1765762453193,0.1932,3092.0,3090.5,0.58047529]
[1765762453395,0.1932,3092.0,3090.6,0.81648573]
[1765762453608,0.1932,3092.0,3090.4,0.58047529]
[1765762453609,0.013002,3091.9,3090.9,3.23530363]
[1765762453827,0.4999,3091.9,3091.0,0.70198973]
[1765762453997,0.4999,3091.9,3091.1,0.29648573]
[1765762454198,0.4999,3091.9,3091.2,0.29648573]
[1765762454417,0.4934,3091.1,3090.9,0.924504]
[1765762454746,0.4399,3090.9,3090.7,0.405504]
[1765762455120,6.46861882,3091.9,3090.9,0.405504]
[1765762455121,0.4999,3091.2,3090.9,0.405504]
[1765762455322,0.1932,3092.0,3090.8,3.2354083]
[1765762455323,0.4999,3091.6,3091.1,0.405504]
[1765762455701,0.4934,3091.2,3090.9,0.925504]
[1765762456027,0.4999,3091.6,3090.9,3.23523836]
[1765762456194,0.4999,3091.6,3091.0,0.58047529]
[1765762456520,0.4999,3091.6,3091.0,0.52]
[1765762456729,0.4999,3091.6,3090.9,0.58047529]
[1765762456730,0.4934,3091.1,3090.9,0.58047529]
[1765762456913,0.4934,3091.1,3090.9,0.52]
[1765762457220,0.4934,3091.1,3090.9,3.7552603]
[1765762457634,0.4999,3091.8,3091.0,0.405504]
[1765762457815,0.4999,3091.8,3091.2,0.405504]
[1765762458129,0.4999,3091.8,3091.3,0.519]
[1765762458527,0.19536917,3092.0,3091.4,0.405504]
[1765762458730,0.013002,3093.5,3091.4,0.405504]
[1765762458731,3.23107173,3095.0,3092.0,8.437506]
[1765762458916,0.001,3092.2,3092.1,1.21854307]
[1765762459228,0.001,3092.2,3092.1,8.57312388]
[1765762459437,0.001,3092.2,3092.1,11.36170488]
[1765762459600,0.001,3092.2,3092.1,11.88845046]
[1765762459951,0.001,3092.2,3092.1,19.70449393]
[1765762460114,0.1932,3093.9,3092.8,6.15140552]
[1765762460439,0.1932,3093.9,3092.5,0.925504]
[1765762460727,0.1932,3093.9,3092.7,0.405504]
[1765762461035,0.1932,3093.9,3092.6,0.405504]
[1765762461036,0.4999,3093.8,3092.6,0.405504]
[1765762461239,0.1932,3092.7,3092.1,3.23404805]
[1765762461462,0.1932,3092.7,3092.1,3.23403495]
[1765762461732,0.1932,3092.7,3092.0,3.23407061]
[1765762461905,0.4999,3092.6,3091.1,6.34680552]
[1765762462106,0.512902,3092.6,3091.7,3.2344432]
[1765762462302,0.4999,3092.6,3091.9,3.23424178]
[1765762462501,0.1932,3092.7,3092.0,0.521]
[1765762462725,3.23227099,3093.8,3092.6,0.1518]
[1765762462924,3.73217099,3093.8,3092.7,0.405504]
[1765762463126,0.4999,3093.7,3092.7,0.405504]
[1765762463439,0.4999,3093.7,3092.4,0.405504]
[1765762463602,0.1432,3092.8,3092.4,0.405504]
[1765762463804,0.1432,3092.8,3092.4,3.63913488]
[1765762464449,0.1432,3092.8,3092.4,6.87286919]
[1765762464607,3.23236145,3093.8,3092.4,6.87286919]
[1765762464608,0.4999,3093.5,3092.4,6.87286919]
[1765762464802,0.4999,3093.5,3092.5,1.10147529]
[1765762465002,0.1932,3093.9,3092.5,1.10147529]
[1765762465003,0.1932,3093.9,3092.6,0.405504]
[1765762465324,0.4999,3093.5,3092.6,0.405504]
[1765762465941,3.23268895,3093.4,3092.7,0.58047529]
[1765762466161,3.23268895,3093.4,3092.4,0.521]
[1765762466365,0.001,3092.6,3092.5,3.23361614]
[1765762466578,0.001,3092.6,3092.5,3.63912014]
[1765762466927,0.001,3092.6,3092.4,0.521]
[1765762467184,0.9753,3092.5,3092.0,6.34336481]
[1765762467523,0.224,3092.1,3092.0,6.34336481]
[1765762467762,0.6993,3092.1,3092.0,6.34336481]
[1765762467964,0.224,3092.1,3092.0,6.34336481]
[1765762468165,0.4753,3092.5,3092.0,9.57751746]
[1765762468336,0.4753,3092.5,3092.0,6.34336481]
[1765762468530,0.4986,3092.1,3092.0,6.34336481]
[1765762469066,0.4753,3092.5,3092.0,9.57751732]
[1765762469269,0.4753,3092.5,3092.0,6.34336481]
[1765762469473,0.4753,3092.5,3092.0,9.57750526]
[1765762469976,0.001,3092.6,3092.4,0.476]
[1765762470130,0.001,3092.6,3092.5,0.476]
[1765762471265,0.001,3092.6,3092.5,1.39694029]
[1765762471568,0.001,3092.6,3092.5,0.91384029]
[1765762471932,0.001,3092.6,3092.5,4.72794532]
[1765762472126,0.001,3092.6,3092.5,5.21104532]
[1765762472382,0.001,3092.6,3092.5,6.10762493]
[1765762472535,0.001,3092.6,3092.5,6.58292493]
[1765762472730,0.001,3092.6,3092.5,6.55058864]
[1765762473972,0.001,3092.6,3092.5,4.69560903]
[1765762474141,0.001,3092.6,3092.5,5.21560903]
[1765762474348,0.001,3092.6,3092.5,5.69870903]
[1765762474868,0.6,3094.4,3092.5,5.69870903]
[1765762474869,0.6,3094.4,3092.6,30.98597929]
[1765762475085,0.6,3094.4,3094.3,0.999704]
[1765762475252,0.6,3094.4,3094.3,37.77558481]
[1765762475452,0.1914,3095.9,3094.9,0.405504]
[1765762475754,0.1914,3095.9,3094.4,0.58047529]
[1765762475755,0.1914,3095.9,3095.1,0.405504]
[1765762476070,0.6667,3095.9,3095.3,0.405504]
[1765762476280,3.70507646,3096.2,3095.3,0.405504]
[1765762476480,0.36012283,3097.1,3095.3,0.405504]
[1765762476481,3.896588,3096.1,3095.3,0.405504]
[1765762476663,0.3896588,3096.0,3095.3,0.405504]
[1765762476847,0.8649588,3096.0,3095.0,0.521]
[1765762477048,0.8649588,3096.0,3095.1,3.63639117]
[1765762477369,0.4753,3095.9,3094.3,0.7182]
[1765762477537,0.4753,3095.9,3094.3,0.1182]
[1765762477732,1.12669877,3095.9,3095.3,0.98597929]
[1765762478038,0.4753,3096.0,3095.4,0.405504]
[1765762478232,0.013002,3096.9,3095.8,0.405504]
[1765762478455,0.013002,3096.9,3095.7,0.522]
[1765762478456,0.4753,3096.8,3095.7,0.522]
[1765762478655,0.4753,3096.8,3095.8,0.405504]
[1765762478866,0.3253,3096.8,3095.5,0.405504]
[1765762479066,0.1914,3095.5,3095.1,0.4831]
[1765762479368,9.70016741,3096.9,3095.1,0.4831]
[1765762479659,0.1914,3095.7,3095.3,3.23067889]
[1765762479859,9.68773209,3096.7,3095.2,0.405504]
[1765762480063,0.1914,3095.3,3095.2,0.405504]
[1765762480238,0.013002,3095.9,3095.2,0.405504]
[1765762480559,0.1914,3095.6,3095.1,0.4831]
[1765762480941,0.4753,3095.5,3095.1,0.4831]
[1765762481466,0.1914,3095.6,3095.1,1.02655367]
[1765762481775,0.1914,3095.6,3095.2,3.63627561]
[1765762481934,0.1914,3095.8,3095.2,7.33336753]
[1765762482140,0.1914,3095.8,3095.2,0.405504]
[1765762482479,0.1914,3095.8,3095.1,0.405504]
[1765762482480,0.4753,3095.7,3095.1,0.405504]
[1765762482767,0.4753,3095.7,3094.8,0.405504]
[1765762483155,0.4753,3095.7,3094.9,0.94895767]
[1765762483359,0.4753,3095.7,3094.9,4.18007734]
[1765762483561,0.002,3095.5,3095.1,0.405504]
[1765762483963,0.002,3095.5,3095.1,3.6363952]
[1765762484164,0.002,3095.5,3095.3,0.405504]
[1765762484373,0.002,3095.5,3095.4,0.888604]
[1765762484672,0.002,3095.5,3095.4,0.405504]
[1765762485074,0.002,3095.5,3095.4,0.888604]
[1765762485777,0.002,3095.5,3095.4,1.363904]
[1765762485972,0.002,3095.5,3095.4,5.42171746]
[1765762486153,0.002,3095.5,3095.4,0.58047529]
[1765762486466,0.002,3095.5,3094.8,0.96966405]
[1765762486467,0.4773,3095.5,3094.8,0.96966405]
[1765762486668,0.002,3095.5,3095.0,3.23100754]
[1765762486844,0.002,3095.5,3094.5,1.0061]
[1765762487044,0.4753,3095.4,3094.5,0.523]
[1765762487244,0.4753,3095.4,3094.8,3.23113102]
[1765762487444,0.002,3095.5,3095.4,3.23060024]
[1765762487640,0.002,3095.5,3095.4,4.77188553]
[1765762487867,0.002,3095.5,3095.4,0.98597929]
[1765762488063,0.002,3095.5,3095.3,0.405504]
[1765762488370,0.002,3095.5,3095.4,3.63610424]
[1765762488543,0.002,3095.5,3095.4,3.23060024]
[1765762488747,0.4773,3095.5,3095.4,3.63610424]
[1765762489073,0.002,3095.5,3095.4,0.405504]
[1765762489251,0.002,3095.5,3095.2,1.10447529]
[1765762489571,0.002,3095.5,3095.2,0.524]
[1765762489762,0.002,3095.5,3095.1,0.405504]
[1765762489961,0.002,3095.5,3095.4,4.69257953]
[1765762490153,0.002,3095.5,3095.4,4.24888553]
[1765762490354,0.002,3095.5,3095.4,4.69967953]
[1765762491055,0.002,3095.5,3095.4,23.13702353]
[1765762491255,0.002,3095.5,3095.4,27.46913859]
[1765762491455,0.002,3095.5,3095.4,12.54086645]
[1765762491755,0.002,3095.5,3095.4,10.87176645]
[1765762492853,0.002,3095.5,3095.4,8.29366545]
[1765762493052,0.002,3095.5,3095.4,4.74057953]
[1765762493251,0.002,3095.5,3095.4,3.81107553]
[1765762493451,0.002,3095.5,3095.4,3.23060024]
[1765762493688,0.002,3095.5,3095.1,0.523]
[1765762493689,0.4773,3095.5,3095.1,0.523]
[1765762493888,0.4773,3095.5,3094.6,0.4753]
[1765762494043,0.4773,3095.5,3094.9,6.46224432]
[1765762494246,0.4773,3095.5,3095.0,0.58047529]
[1765762494445,0.002,3095.5,3095.0,0.58047529]
[1765762494956,0.4773,3095.5,3095.0,0.58047529]
[1765762495169,0.002,3095.5,3095.1,0.405504]
[1765762496086,0.002,3095.5,3095.0,0.509287]
[1765762496285,0.002,3095.5,3095.3,3.2306871]
[1765762496860,0.002,3095.5,3095.4,0.405504]
[1765762497462,0.002,3095.5,3095.4,0.98597929]
[1765762497689,0.002,3095.5,3095.4,1.78624865]
[1765762497984,0.002,3095.5,3095.4,2.26874865]
[1765762498164,0.002,3095.5,3095.4,5.49934889]
[1765762498564,0.002,3095.5,3095.4,18.95886589]
[1765762498869,0.002,3095.5,3095.4,5.49934889]
[1765762499386,0.002,3095.5,3095.4,11.3886577]
[1765762499579,0.002,3095.5,3095.4,11.3563517]
[1765762500173,0.002,3095.5,3095.4,11.3573517]
[1765762500712,3.42010646,3097.3,3095.4,11.3573517]
[1765762500713,0.1914,3098.1,3095.4,44.10349766]
[1765762500869,0.1914,3098.1,3097.3,0.405504]
[1765762501062,0.1914,3098.1,3097.5,0.405504]
[1765762501283,0.4574,3098.0,3097.5,0.405504]
[1765762501496,0.4574,3098.0,3097.4,0.4544]
[1765762501671,0.4574,3098.0,3096.1,2.75345137]
[1765762501672,3.68533633,3098.0,3096.4,0.58047529]
[1765762501868,0.38787363,3097.9,3096.5,0.928504]
[1765762502064,0.84227363,3097.9,3096.6,0.9804]
[1765762502394,0.4544,3098.3,3097.4,5.85700281]
[1765762502694,0.4544,3098.3,3097.4,0.405504]
[1765762502917,0.1844,3097.5,3096.8,0.98597929]
[1765762503420,0.1844,3096.9,3096.7,0.4544]
[1765762503568,0.1844,3097.9,3097.2,5.85700281]
[1765762503903,0.1844,3097.9,3097.4,0.405504]
[1765762504065,0.08341595,3098.4,3097.6,0.405504]
[1765762504266,0.08341595,3098.4,3097.8,0.98597929]
[1765762504467,0.08341595,3098.4,3098.3,0.98597929]
[1765762504720,0.08341595,3098.4,3097.9,0.524]
[1765762504923,0.08341595,3098.4,3098.2,0.405504]
[1765762505063,0.08341595,3098.4,3098.1,5.89860281]
[1765762505064,0.4544,3099.8,3098.8,0.98597929]
[1765762505267,0.1844,3100.1,3099.4,0.405504]
[1765762505469,0.1844,3100.1,3099.4,0.930504]
[1765762505896,0.4544,3100.0,3099.1,0.405504]
[1765762506071,0.1844,3099.5,3099.1,0.405504]
[1765762506267,0.4544,3099.9,3099.3,0.405504]
[1765762506500,0.4544,3100.0,3098.1,0.5666]
[1765762506671,1.0316067,3099.9,3098.2,3.22767296]
[1765762506866,1.0316067,3099.9,3098.8,3.22704619]
[1765762507068,1.0316067,3099.9,3098.7,0.58047529]
[1765762507069,0.4544,3099.8,3098.7,0.58047529]
[1765762507367,0.4544,3099.8,3098.7,3.22712597]
[1765762507606,0.4544,3099.8,3098.9,0.405504]
[1765762507807,0.4544,3099.8,3098.2,0.58047529]
[1765762507808,0.1844,3099.0,3098.3,0.58047529]
[1765762507968,0.1844,3099.7,3098.3,0.58047529]
[1765762508171,0.1844,3099.7,3098.1,0.525]
[1765762508172,0.1844,3098.9,3098.1,0.525]
[1765762508511,0.1844,3099.7,3098.6,5.85700281]
[1765762508718,0.002,3099.8,3099.2,0.98597929]
[1765762509013,0.002,3099.8,3099.3,0.525]
[1765762509228,0.002,3099.8,3099.6,5.85700281]
[1765762509375,0.002,3099.8,3099.7,1.51097929]
[1765762509577,0.013002,3100.7,3099.7,1.96867929]
[1765762509821,0.1844,3101.2,3100.2,5.85700281]
[1765762509972,0.4539,3101.9,3100.8,0.405504]
[1765762510172,0.002,3102.3,3101.2,0.405504]
[1765762510375,3.22543555,3102.3,3101.2,0.405504]
[1765762510710,3.22543555,3102.3,3100.9,0.525]
[1765762510711,0.4539,3101.9,3100.9,0.525]
[1765762510910,0.013002,3101.7,3100.0,0.77087529]
[1765762511101,0.4539,3101.9,3101.0,3.22472858]
[1765762511292,0.4539,3101.9,3101.1,0.405504]
[1765762511799,0.4539,3101.9,3101.0,0.405504]
[1765762511997,0.4539,3101.9,3100.6,6.19764582]
[1765762511998,0.4539,3101.9,3100.7,0.405504]
[1765762512311,0.4539,3101.9,3100.3,6.4509886]
[1765762512312,7.42776896,3101.8,3100.3,6.4509886]
[1765762512507,0.7440771,3101.7,3100.5,0.405504]
[1765762512715,6.64649569,3102.0,3100.7,0.405504]
[1765762512916,0.4539,3101.6,3100.7,0.405504]
[1765762513406,0.199,3100.8,3099.8,5.67164582]
[1765762513703,0.199,3100.8,3099.9,3.22588792]
[1765762513905,0.4539,3100.7,3099.6,3.22621177]
[1765762514122,0.4539,3100.7,3099.1,5.86204582]
[1765762514123,0.4539,3100.7,3099.3,0.527]
[1765762514284,0.4539,3100.7,3099.6,5.67164582]
[1765762514484,0.4539,3100.7,3099.7,0.405504]
[1765762514915,3.22407485,3101.7,3099.4,6.91056184]
[1765762514916,0.4539,3101.3,3100.2,0.405504]
[1765762515234,0.39193,3101.3,3100.2,0.405504]
[1765762516111,0.202,3102.0,3100.6,0.405504]
[1765762516313,3.42574238,3102.0,3100.7,6.4501564]
[1765762516514,0.35557624,3101.9,3100.8,0.405504]
[1765762516690,0.34673624,3101.9,3100.6,3.22516643]
[1765762517041,0.013002,3101.7,3099.9,0.527]
[1765762517324,0.87373624,3101.9,3099.6,5.67164582]
[1765762517325,0.013002,3101.4,3099.6,5.67164582]
[1765762517530,0.013002,3101.4,3100.0,3.225779]
[1765762517731,0.013002,3101.4,3099.6,5.67164582]
[1765762517732,0.9809,3101.3,3099.6,5.67164582]
[1765762517934,0.44878,3101.3,3100.2,0.405504]
[1765762518226,0.527,3101.7,3100.2,3.63107255]
[1765762518533,0.527,3101.7,3100.0,3.22574381]
[1765762518534,0.013002,3101.3,3100.0,0.405504]
[1765762518949,0.013002,3101.1,3099.7,6.70275782]
[1765762519102,0.013002,3100.9,3099.7,0.58047529]
[1765762519410,0.539002,3100.9,3099.3,3.75346311]
[1765762519611,0.199,3100.8,3099.1,0.1904]
[1765762519812,0.199,3100.8,3099.2,3.22656313]
[1765762520017,0.6529,3100.8,3099.1,3.2267337]
[1765762520192,0.013002,3100.5,3098.8,0.527]
[1765762520394,10.20317081,3100.4,3098.8,0.527]
[1765762520592,10.20317081,3100.4,3098.6,5.67164582]
[1765762520593,0.013002,3100.2,3098.6,5.67164582]
[1765762520838,0.013002,3100.2,3098.4,0.527]
[1765762520839,0.4539,3100.1,3098.4,0.527]
[1765762521194,0.4539,3100.1,3098.4,0.001]
[1765762521426,0.013002,3099.3,3098.4,0.001]
[1765762521634,0.1343,3098.5,3098.4,0.001]
[1765762521832,0.1343,3099.0,3098.4,0.001]
[1765762522130,0.4539,3098.9,3098.4,0.001]
[1765762522334,3.6808643,3098.9,3098.4,0.001]
[1765762522580,0.013002,3098.7,3098.4,0.001]
[1765762522741,0.013002,3098.7,3097.0,3.22892534]
[1765762523064,0.013002,3098.7,3096.6,0.7174]
[1765762523065,0.4539,3098.6,3096.6,3.22932589]
[1765762523244,0.45195,3098.6,3096.4,0.4577]
[1765762523583,0.45195,3098.6,3097.0,3.2289188]
[1765762523894,0.45195,3098.6,3096.7,3.22923315]
[1765762523895,0.45195,3098.6,3096.7,3.22923128]
[1765762524061,0.1765,3096.8,3096.2,0.527]
[1765762524381,0.1765,3096.8,3095.7,0.4577]
[1765762524382,0.1765,3096.8,3095.7,0.9847]
[1765762524540,0.1741,3096.8,3096.0,0.03229974]
[1765762524744,6.6324357,3096.8,3095.4,3.2315808]
[1765762524992,1.19024357,3096.7,3095.4,0.001]
[1765762525345,0.4539,3096.6,3095.4,0.001]
[1765762525772,17.20812782,3096.3,3094.4,0.001]
[1765762526102,0.4539,3096.6,3094.4,0.001]
[1765762526302,0.66324357,3096.7,3094.4,0.001]
[1765762526303,0.527,3096.2,3094.4,0.001]
[1765762526463,6.45973966,3096.1,3094.4,0.001]
[1765762526669,0.013002,3095.4,3094.4,0.001]
[1765762526970,0.013002,3095.4,3094.4,0.03331644]